fUST/lending_fUST_20241127
["ID","MTS","AMOUNT","RATE_DAILY","PERIOD"]
[343509154,1732697454708,-2055.59318,0.000296,7]
[343509155,1732697454717,-2055.59318,0.000296,7]
[343509156,1732697454726,-152.37,0.000296,31]
[343509157,1732697454736,-152.37,0.000296,31]
[343509158,1732697454745,-152.37,0.000296,31]
[343509159,1732697454754,-152.37,0.000296,31]
[343509160,1732697454763,-152.37,0.000296,31]
[343509161,1732697454773,-152.37,0.000296,31]
[343509162,1732697454859,-152.37,0.000296,31]
[343509163,1732697454868,-152.37,0.000296,31]
[343509164,1732697454878,-152.37,0.000296,31]
[343509165,1732697454887,-152.37,0.000296,31]
[343509166,1732697454896,-152.37,0.000296,31]
[343509167,1732697454905,-152.37,0.000296,31]
[343509168,1732697454914,-588.82130179,0.000296,2]
[343509169,1732697454923,-510.19432561,0.00029673,5]
[343509170,1732697454932,-160.09582971,0.00029673,5]
[343509171,1732697454942,-14394.50469647,0.000297,2]
[343509172,1732697454951,-14394.50469645,0.000297,2]
[343509173,1732697454960,-14394.50469645,0.000297,2]
[343509174,1732697454970,-14394.50469645,0.000297,2]
[343509175,1732697454980,-926.35277979,0.00029794,2]
[343509176,1732697454989,-150.17,0.00029864,2]
[343509177,1732697454998,-500.0,0.00029864,2]
[343509178,1732697455008,-510.84874765,0.00029864,2]
[343509179,1732697455017,-150.17,0.00029864,2]
[343509180,1732697455027,-823.0,0.00029883,2]
[343509181,1732697455038,-150.0,0.00029993,2]
[343509182,1732697455047,-1170.444763,0.0003,7]
[343509183,1732697455056,-1170.444763,0.0003,7]
[343509184,1732697455066,-151.0,0.0003,7]
[343509185,1732697455075,-603.74131446,0.0003,3]
[343509187,1732697455084,-2055.59318,0.0003,7]
[343509188,1732697455094,-2055.59318,0.0003,7]
[343509189,1732697455104,-231.2345,0.0003,2]
[343509190,1732697455113,-276.0,0.0003,2]
[343509191,1732697455122,-153.0,0.00030055,30]
[343509192,1732697455132,-153.0,0.00030055,30]
[343509193,1732697455141,-153.0,0.00030055,30]
[343509194,1732697455151,-153.0,0.00030055,30]
[343509195,1732697455160,-153.0,0.00030055,30]
[343509196,1732697455169,-153.0,0.00030055,30]
[343509197,1732697455178,-153.0,0.00030055,30]
[343509198,1732697455187,-153.0,0.00030055,30]
[343509199,1732697455197,-153.0,0.00030055,30]
[343509200,1732697455206,-500.0,0.00030136,4]
[343509201,1732697455216,-2481.628619,0.00030137,120]
[343509202,1732697455225,-150.17,0.00030138,2]
[343509203,1732697455235,-500.0,0.00030138,2]
[343509204,1732697455244,-150.17,0.00030138,2]
[343509205,1732697455254,-150.0,0.00030151,2]
[343509206,1732697455263,-5773.41346361,0.00030173,2]
[343509207,1732697455272,-1050.69799163,0.00030346,2]
[343509208,1732697455281,-150.17,0.00030412,2]
[343509209,1732697455291,-500.0,0.00030412,2]
[343509210,1732697455300,-150.17,0.00030412,2]
[343509211,1732697455310,-3200.0,0.00030553,2]
[343509212,1732697455319,-650.226,0.00030553,7]
[343509213,1732697455328,-151.0,0.00030557,7]
[343509214,1732697455337,-1000.0,0.000306,4]
[343509215,1732697455347,-6865.71445665,0.00030665,2]
[343509216,1732697455356,-124431.09209907,0.00030666,2]
[343509217,1732697455758,-795.42,0.0002498,10]
[343509218,1732697455768,-238.44476521,0.0002499,2]
[343509219,1732697455778,-500.0,0.00027373,2]
[343509220,1732697455788,-500.8209716,0.00027373,2]
[343509221,1732697455797,-504.51157849,0.00027397,3]
[343509222,1732697455806,-568.68,0.00027397,3]
[343509223,1732697455815,-905.24,0.00027397,3]
[343509224,1732697455825,-568.68,0.00027397,3]
[343509225,1732697455834,-905.24,0.00027397,3]
[343509226,1732697455844,-905.34056105,0.00027397,3]
[343509227,1732697455853,-568.68,0.00027397,3]
[343509228,1732697455862,-507.48235695,0.00027397,3]
[343509229,1732697455871,-568.68,0.00027397,3]
[343509230,1732697455882,-568.68,0.00027397,3]
[343509231,1732697455892,-568.68,0.00027397,3]
[343509232,1732697455901,-500.0,0.00027397,3]
[343509233,1732697455910,-568.68,0.00027397,3]
[343509234,1732697455922,-500.0,0.00027397,3]
[343509235,1732697455931,-568.68,0.00027397,3]
[343509236,1732697455941,-500.0,0.00027397,3]
[343509237,1732697455952,-568.68,0.00027397,3]
[343509238,1732697455961,-500.0,0.00027397,3]
[343509239,1732697455971,-568.68,0.00027397,3]
[343509240,1732697455981,-500.0,0.00027921,5]
[343509241,1732697455991,-629477.56923742,0.00030666,2]
[343509242,1732697456003,-45809.87765174,0.00030666,2]
[343509243,1732697456012,-199.63,0.00030686,2]
[343509244,1732697456021,-500.0,0.00030686,2]
[343509245,1732697456031,-201.02490331,0.00030686,2]
[343509246,1732697456042,-500.87534817,0.00030773,5]
[343509247,1732697456052,-268.50267601,0.000308,5]
[343509248,1732697456061,-32520.08942077,0.000308,120]
[343509249,1732697456072,-602.15891228,0.000308,120]
[343509250,1732697456083,-13422.13826372,0.000308,120]
[343509251,1732697456126,-1562.618,0.0002618,2]
[343509252,1732697456136,-500.0,0.00027397,3]
[343509253,1732697456145,-568.8223187,0.00027397,3]
[343509254,1732697456155,-500.0,0.00027397,3]
[343509255,1732697456164,-500.0,0.00027397,3]
[343509256,1732697456173,-500.0,0.00027397,3]
[343509257,1732697456184,-293240.46207192,0.000308,120]
[343509259,1732697456294,-500.0,0.00027397,3]
[343509260,1732697456304,-500.0,0.00027397,3]
[343509261,1732697456314,-500.0,0.00027397,3]
[343509262,1732697456323,-500.0,0.00027397,3]
[343509263,1732697456333,-500.0,0.00027397,3]
[343509264,1732697456342,-500.0,0.00027397,3]
[343509265,1732697456352,-500.0,0.00027397,3]
[343509266,1732697456361,-151.0,0.00030665,7]
[343509267,1732697456371,-32469.15133131,0.000308,120]
[343509268,1732697456380,-151.0,0.000308,7]
[343509269,1732697456389,-151.0,0.000308,7]
[343509270,1732697456399,-36.21866868,0.000308,7]
[343509271,1732697456414,-115.23058832,0.000308,7]
[343509272,1732697456424,-151.0,0.000308,7]
[343509273,1732697456433,-151.0,0.000308,7]
[343509274,1732697456443,-151.0,0.000308,7]
[343509275,1732697456452,-603.880715,0.000308,7]
[343509276,1732697456462,-603.880715,0.000308,7]
[343509277,1732697456471,-55.88454055,0.000308,120]
[343509278,1732697456482,-1453.13795056,0.000308,120]
[343509279,1732697456556,-267.20354568,0.00027297,2]
[343509280,1732697456567,-9.9016808,0.00027397,3]
[343509293,1732697531890,500.0,0.00022001,2]
[343509294,1732697557048,500.0,0.00022,30]
[343509295,1732697734108,319.182056,0.00013973,2]
[343509296,1732697734323,319.182056,0.00020447,2]
[343509309,1732698029946,337.44528694,0.00031062,120]
[343509310,1732698249860,1378.45,0.00025,120]
[343509313,1732698438715,287.26385,0.00013973,2]
[343509314,1732698438918,287.26385,0.00020447,2]
[343509315,1732698444079,-165.555792,0.00024802,2]
[343509316,1732698444100,-12.48558172,0.00025205,2]
[343509317,1732698445117,-387.51441828,0.00025205,2]
[343509318,1732698445139,-596.732288,0.00025778,2]
[343509319,1732698445161,-179.078623,0.00025878,2]
[343509320,1732698445182,-250.0,0.00025953,2]
[343509321,1732698445204,-1156.4485986,0.00025953,2]
[343509322,1732698445226,-154.39212999,0.00026082,2]
[343509323,1732698445247,-150.324,0.0002618,2]
[343509324,1732698445267,-300.0,0.0002618,2]
[343509325,1732698445288,-300.0,0.0002618,2]
[343509326,1732698445309,-15964.03518364,0.0002618,2]
[343509348,1732698632788,-300.0,0.00026177,2]
[343509349,1732698632800,-9116.59731628,0.00026177,2]
[343509350,1732698632812,-1072.87,0.00026177,2]
[343509367,1732698638951,-154.39212996,0.00026082,2]
[343509368,1732698638960,-2005.44400798,0.00026177,2]
[343509369,1732698638973,-15247.08867574,0.00026177,2]
[343509370,1732698638982,-223.403,0.00026182,2]
[343509371,1732698638991,-250.123,0.00026182,2]
[343509372,1732698639001,-150.0,0.00026182,2]
[343509373,1732698639010,-531.0,0.00026182,2]
[343509374,1732698639020,-1108.52555204,0.00026182,2]
[343509375,1732698639032,-1268.47444796,0.00026182,2]
[343509376,1732698639041,-1104.0,0.00026182,2]
[343509377,1732698639050,-287.26385,0.00026921,2]
[343509378,1732698639061,-335.66170883,0.00027297,2]
[343509388,1732698641169,-330.33829117,0.00027297,2]
[343509389,1732698641179,-123.06372529,0.00027297,16]
[343509390,1732698641191,-104.00427471,0.00027297,16]
[343509391,1732698641200,-385.94072529,0.00027387,10]
[343509392,1732698641211,-58.65927471,0.00027387,10]
[343509393,1732698641220,-399.74072529,0.00027387,10]
[343509394,1732698641232,-369.20927471,0.00027387,10]
[343509395,1732698641241,-93.59569693,0.00027387,3]
[343509396,1732698641252,-85.21430307,0.00027387,3]
[343509397,1732698641262,-640.79,0.00027387,10]
[343509398,1732698641271,-235.71844213,0.00027397,2]
[343509399,1732698641280,-500.0,0.00027397,3]
[343509401,1732698641289,-501.48719661,0.00027397,3]
[343509402,1732698641299,-500.0,0.00027397,3]
[343509403,1732698641308,-502.02768346,0.00027397,3]
[343509404,1732698641316,-503.81124429,0.00027397,3]
[343509405,1732698641325,-500.0,0.00027397,3]
[343509406,1732698641334,-128.46562418,0.00027397,3]
[343509416,1732698643788,-154.39212996,0.00027302,2]
[343509417,1732698643798,-371.53437582,0.00027397,3]
[343509418,1732698643807,-500.0,0.00027397,3]
[343509419,1732698643816,-318.78584405,0.00027397,3]
[343509421,1732698644089,-318.14047953,0.00027397,3]
[343509422,1732698644099,-328.70839201,0.00027397,3]
[343509423,1732698644108,-500.0,0.00027397,3]
[343509424,1732698644118,-500.0,0.00027397,3]
[343509425,1732698644133,-500.0,0.00027397,3]
[343509426,1732698644143,-500.0,0.00027397,3]
[343509427,1732698644152,-526.00057024,0.00027397,3]
[343509428,1732698644161,-500.0,0.00027397,3]
[343509429,1732698644171,-500.0,0.00027397,3]
[343509430,1732698644180,-500.0,0.00027397,3]
[343509431,1732698644190,-500.0,0.00027397,3]
[343509432,1732698644199,-500.0,0.00027397,3]
[343509433,1732698644208,-500.0,0.00027397,3]
[343509434,1732698644218,-500.0,0.00027397,3]
[343509435,1732698644227,-508.25884752,0.00027397,3]
[343509436,1732698644237,-500.0,0.00027397,3]
[343509437,1732698644247,-500.0,0.00027397,3]
[343509438,1732698644256,-505.12106572,0.00027397,3]
[343509439,1732698644266,-193.46865157,0.00027397,3]
[343509440,1732698644276,-502.60083908,0.00027397,3]
[343509441,1732698644285,-324.18656449,0.00027397,3]
[343509442,1732698644295,-521.98692025,0.00027397,3]
[343509443,1732698644304,-500.0,0.00027397,3]
[343509444,1732698644314,-502.48025163,0.00027397,3]
[343509445,1732698644323,-500.0,0.00027397,3]
[343509446,1732698644333,-500.0,0.00027397,3]
[343509447,1732698644343,-500.0,0.00027397,3]
[343509448,1732698644352,-500.0,0.00027397,3]
[343509449,1732698644362,-502.91244641,0.00027397,3]
[343509450,1732698644372,-290.08595823,0.00027397,3]
[343509451,1732698644381,-500.0,0.00027397,3]
[343509452,1732698644391,-505.95417015,0.00027397,3]
[343509453,1732698644401,-500.0,0.00027397,3]
[343509454,1732698644410,-500.0,0.00027397,3]
[343509455,1732698644420,-537.54789437,0.00027397,3]
[343509456,1732698644430,-500.0,0.00027397,3]
[343509457,1732698644439,-500.0,0.00027397,3]
[343509458,1732698644449,-500.0,0.00027397,3]
[343509459,1732698644458,-500.0,0.00027397,3]
[343509460,1732698644469,-500.0,0.00027397,3]
[343509461,1732698644482,-569.40515294,0.00027397,3]
[343509462,1732698644492,-500.0,0.00027397,3]
[343509463,1732698644501,-517.733469,0.00027397,3]
[343509464,1732698644511,-516.05458862,0.00027397,3]
[343509465,1732698644520,-512.71422551,0.00027397,3]
[343509466,1732698644530,-507.25396791,0.00027397,3]
[343509467,1732698644540,-500.0,0.00027397,3]
[343509468,1732698644549,-502.27263558,0.00027397,3]
[343509469,1732698644558,-500.0,0.00027397,3]
[343509470,1732698644568,-513.31638733,0.00027397,3]
[343509471,1732698644577,-517.11409044,0.00027397,3]
[343509472,1732698644587,-503.25783671,0.00027397,3]
[343509473,1732698644596,-506.15347826,0.00027397,3]
[343509474,1732698644606,-500.0,0.00027397,3]
[343509475,1732698644617,-500.0,0.00027397,3]
[343509476,1732698644626,-500.0,0.00027397,3]
[343509477,1732698644635,-500.0,0.00027397,3]
[343509478,1732698644644,-500.0,0.00027397,3]
[343509479,1732698644653,-478.61938616,0.00027397,3]
[343509480,1732698644663,-500.0,0.00027397,3]
[343509481,1732698644673,-500.0,0.00027397,3]
[343509482,1732698644682,-500.0,0.00027397,3]
[343509483,1732698644691,-511.31939357,0.00027397,3]
[343509484,1732698644700,-500.0,0.00027397,3]
[343509485,1732698644709,-167.06636152,0.00027397,3]
[343509486,1732698644719,-506.01056506,0.00027397,3]
[343509487,1732698644728,-500.0,0.00027397,3]
[343509488,1732698644739,-500.0,0.00027397,3]
[343509489,1732698644752,-271.21650436,0.00027397,3]
[343509490,1732698644762,-508.4229907,0.00027397,3]
[343509491,1732698644771,-577.72571443,0.00027397,3]
[343509492,1732698644781,-500.0,0.00027397,3]
[343509493,1732698644790,-500.0,0.00027397,3]
[343509494,1732698644800,-503.90755872,0.00027397,3]
[343509495,1732698644809,-500.0,0.00027397,3]
[343509496,1732698644819,-502.89963698,0.00027397,3]
[343509497,1732698644828,-500.0,0.00027397,3]
[343509498,1732698644838,-494.24768574,0.00027397,3]
[343509499,1732698644847,-500.0,0.00027397,3]
[343509500,1732698644857,-500.0,0.00027397,3]
[343509501,1732698644867,-454.51,0.00027397,3]
[343509502,1732698644876,-506.13041719,0.00027397,3]
[343509503,1732698644886,-500.0,0.00027397,3]
[343509504,1732698644895,-508.19047764,0.00027397,3]
[343509505,1732698644908,-506.25244076,0.00027397,3]
[343509506,1732698644917,-506.59005621,0.00027397,3]
[343509507,1732698644927,-507.04131182,0.00027397,3]
[343509508,1732698644937,-500.0,0.00027397,3]
[343509509,1732698644947,-506.52214374,0.00027397,3]
[343509510,1732698644956,-508.59796121,0.00027397,3]
[343509511,1732698644967,-500.0,0.00027397,3]
[343509512,1732698644977,-500.0,0.00027397,3]
[343509513,1732698644987,-500.0,0.00027397,3]
[343509514,1732698644997,-500.0,0.00027397,3]
[343509515,1732698645007,-500.0,0.00027397,3]
[343509516,1732698645016,-500.0,0.00027397,3]
[343509517,1732698645026,-500.0,0.00027397,3]
[343509518,1732698645035,-500.0,0.00027397,3]
[343509519,1732698645045,-500.0,0.00027397,3]
[343509520,1732698645055,-391.41416097,0.00027397,3]
[343509521,1732698645064,-500.0,0.00027397,3]
[343509522,1732698645074,-512.82644351,0.00027397,3]
[343509523,1732698645084,-500.0,0.00027397,3]
[343509524,1732698645094,-413.94650565,0.00027397,2]
[343509525,1732698645104,-357.84069784,0.00027397,3]
[343509526,1732698645113,-500.0,0.00027397,3]
[343509527,1732698645123,-500.0,0.00027397,3]
[343509528,1732698645132,-500.0,0.00027397,3]
[343509529,1732698645142,-500.0,0.00027397,3]
[343509530,1732698645152,-500.0,0.00027397,3]
[343509531,1732698645161,-357.62,0.00028757,3]
[343509532,1732698645171,-500.0,0.00028767,2]
[343509533,1732698645180,-420.0,0.00028795,2]
[343509534,1732698645190,-153.0,0.00029096,30]
[343509535,1732698645200,-344.718,0.00029182,2]
[343509536,1732698645210,-2377.0,0.00029182,2]
[343509537,1732698645220,-703.123,0.00029182,2]
[343509538,1732698645230,-153.0,0.00029389,2]
[343509539,1732698645239,-153.0,0.00029389,2]
[343509540,1732698645249,-153.0,0.00029389,2]
[343509541,1732698645259,-153.0,0.00029389,2]
[343509542,1732698645269,-153.0,0.00029389,2]
[343509543,1732698645279,-153.0,0.00029389,2]
[343509544,1732698645293,-153.0,0.00029389,2]
[343509545,1732698645309,-153.0,0.00029389,2]
[343509546,1732698645319,-1000.0,0.0002944,2]
[343509547,1732698645329,-150.0,0.000295,2]
[343509548,1732698645339,-500.0,0.000295,5]
[343509549,1732698645350,-152.38,0.000296,31]
[343509550,1732698645360,-152.38,0.000296,31]
[343509551,1732698645370,-152.38,0.000296,31]
[343509552,1732698645380,-152.38,0.000296,31]
[343509553,1732698645390,-152.38,0.000296,31]
[343509554,1732698645401,-152.38,0.000296,31]
[343509555,1732698645411,-152.38,0.000296,31]
[343509556,1732698645421,-152.38,0.000296,31]
[343509557,1732698645431,-152.38,0.000296,31]
[343509558,1732698645441,-152.38,0.000296,31]
[343509559,1732698645452,-152.38,0.000296,31]
[343509560,1732698645461,-616.0,0.000296,2]
[343509561,1732698645471,-288.6655758,0.0002989,30]
[343509562,1732698645482,-1000.0,0.00029899,2]
[343509563,1732698645493,-1000.0,0.000299,2]
[343509564,1732698645503,-1000.0,0.00029924,2]
[343509565,1732698645513,-245.0,0.0003,2]
[343509566,1732698645524,-500.77126362,0.00030048,5]
[343509567,1732698645533,-500.0,0.00030136,4]
[343509568,1732698645543,-306.0,0.00030137,30]
[343509569,1732698645552,-1861.221464,0.00030137,120]
[343509570,1732698645562,-3200.0,0.00030555,2]
[343509571,1732698645572,-151.0,0.00030665,7]
[343509572,1732698645582,-151.0,0.00030665,7]
[343509573,1732698645592,-151.0,0.00030665,7]
[343509574,1732698645602,-227.35091539,0.00030673,2]
[343509575,1732698645612,-390.89,0.0003069,3]
[343509576,1732698645623,-854.47,0.0003069,10]
[343509577,1732698645632,-500.0,0.00030699,3]
[343509578,1732698645642,-500.0,0.00030699,3]
[343509579,1732698645652,-500.0,0.00030699,3]
[343509580,1732698645661,-500.0,0.00030699,3]
[343509581,1732698645671,-500.0,0.00030699,3]
[343509582,1732698645682,-500.0,0.00030699,3]
[343509583,1732698645691,-157.44421083,0.00030699,3]
[343509584,1732698645702,-500.0,0.00030699,3]
[343509585,1732698645712,-500.0,0.00030699,3]
[343509586,1732698645722,-500.0,0.00030699,3]
[343509587,1732698645732,-500.0,0.00030699,3]
[343509588,1732698645741,-500.0,0.00030699,3]
[343509589,1732698645751,-500.0,0.00030699,3]
[343509590,1732698645761,-500.0,0.00030699,3]
[343509591,1732698645771,-500.0,0.00030699,3]
[343509592,1732698645780,-500.0,0.00030699,3]
[343509593,1732698645790,-500.0,0.00030699,3]
[343509594,1732698645800,-500.0,0.00030699,3]
[343509595,1732698645810,-500.0,0.00030699,2]
[343509596,1732698645820,-500.0,0.00030699,2]
[343509597,1732698645829,-187.66565863,0.00030699,2]
[343509598,1732698645839,-500.0,0.00030699,2]
[343509599,1732698645848,-200.0,0.00030699,2]
[343509600,1732698645858,-500.0,0.00030699,2]
[343509601,1732698645868,-500.0,0.00030699,2]
[343509602,1732698645878,-500.0,0.00030699,2]
[343509603,1732698645888,-508.1635908,0.00030699,2]
[343509604,1732698645901,-350.2604517,0.00030699,2]
[343509605,1732698645911,-450.44171484,0.00030699,2]
[343509606,1732698645921,-222000.0,0.000307,2]
[343509607,1732698645931,-227.35091539,0.00030745,2]
[343509608,1732698645943,-500.0,0.00030773,5]
[343509609,1732698645953,-415.59263834,0.00030799,2]
[343509610,1732698645963,-230.77441551,0.00030799,2]
[343509611,1732698645975,-431.45816739,0.00030799,2]
[343509612,1732698645985,-500.0,0.00030799,2]
[343509613,1732698645995,-209.32083097,0.00030799,2]
[343509614,1732698646005,-615.56193551,0.00030799,2]
[343509615,1732698646014,-500.0,0.00030799,3]
[343509616,1732698646023,-500.0,0.00030799,3]
[343509617,1732698646033,-500.0,0.00030799,3]
[343509618,1732698646042,-500.0,0.00030799,3]
[343509619,1732698646051,-500.0,0.00030799,3]
[343509620,1732698646061,-351.40000001,0.00030799,3]
[343509621,1732698646071,-282.84504768,0.00030799,2]
[343509622,1732698646081,-89358.26583243,0.000308,120]
[343509623,1732698646124,-7164.15000112,0.000308,120]
[343509625,1732698646136,-26052.17478923,0.000308,120]
[343509627,1732698646148,-5842.38451261,0.000308,120]
[343509640,1732698646716,-152.75098743,0.00024953,2]
[343509641,1732698646726,-4306.24568946,0.000308,120]
[343509643,1732698800356,3000.0,0.00031062,108]
[343509644,1732698807653,3000.0,0.00031062,106]
[343509645,1732698878886,3000.0,0.00031089,89]
[343509646,1732699121269,252.469451,0.00013973,2]
[343509647,1732699121554,252.469451,0.00020447,2]
[343509650,1732699593131,-707.77393895,0.000249,2]
[343509651,1732699593152,-466.93,0.00025,2]
[343509652,1732699593173,-2377.0,0.00026762,2]
[343509653,1732699593195,-252.469451,0.00026921,2]
[343509654,1732699593219,-848.9366259,0.00027165,2]
[343509655,1732699593241,-2096.2855701,0.00027251,2]
[343509656,1732699593267,-300.0,0.00027281,2]
[343509657,1732699593290,-3183.46603905,0.00027281,2]
[343509658,1732699648083,-300.0,0.0002728,2]
[343509659,1732699648106,-300.0,0.0002728,2]
[343509660,1732699648128,-3576.97133411,0.0002728,2]
[343509662,1732699697583,362.57512031,0.00021,5]
[343509663,1732699700364,9266.97425874,0.000125,2]
[343509664,1732699709699,1301.74542964,0.000176,2]
[343509665,1732699720595,491.28688238,0.00011,2]
[343509666,1732699721728,34536.34103345,0.0001999,2]
[343509667,1732699724739,1000.0,0.0001,2]
[343509668,1732699725455,10201.73009832,0.000109,2]
[343509692,1732699832086,-952.741868,0.00024658,4]
[343509693,1732699832096,-381.44166004,0.000249,2]
[343509694,1732699832106,-300.0,0.00024998,2]
[343509695,1732699832116,-300.0,0.00024998,2]
[343509696,1732699832128,-3874.0,0.00024999,2]
[343509697,1732699832137,-279.78999871,0.00025,2]
[343509698,1732699832147,-54413.98904627,0.00025,30]
[343509699,1732699832156,-28659.14669591,0.00025,2]
[343509700,1732699832165,-392.22,0.0002508,3]
[343509701,1732699832174,-196.11,0.0002508,3]
[343509702,1732699832184,-588.38,0.0002508,3]
[343509703,1732699832193,-712.06,0.0002508,10]
[343509704,1732699832202,-593.39,0.0002508,10]
[343509705,1732699832213,-130208.80024623,0.0002509,2]
[343509706,1732699832222,-381.44165997,0.00025769,2]
[343509707,1732699832232,-440.93726185,0.00026,2]
[343509708,1732699832242,-1658.00679453,0.00026,30]
[343509709,1732699832251,-2251.88335723,0.00026,3]
[343509710,1732699832261,-184.94874097,0.0002645,3]
[343509711,1732699832272,-599.49125903,0.0002645,3]
[343509712,1732699832282,-392.22,0.0002645,3]
[343509713,1732699832294,-381.44165997,0.00026639,2]
[343509714,1732699832304,-343.37101071,0.00027,60]
[343509715,1732699832313,-420.0,0.00027081,2]
[343509716,1732699832323,-250.0,0.00027283,2]
[343509717,1732699832332,-423.455536,0.00027299,2]
[343509718,1732699832342,-500.0,0.00027397,3]
[343509719,1732699832351,-504.25563386,0.00027397,3]
[343509720,1732699832361,-420.0,0.00027498,2]
[343509721,1732699832371,-381.44165997,0.00027508,2]
[343509722,1732699832381,-1091.2639957,0.0002752,2]
[343509723,1732699832390,-165.742425,0.00027579,2]
[343509724,1732699832403,-1461.132346,0.00027582,2]
[343509725,1732699832413,-425.06945339,0.00027781,2]
[343509726,1732699832454,-5565.23929461,0.00027781,2]
[343509727,1732699832464,-500.0,0.00027999,2]
[343509728,1732699832474,-290.91484683,0.00027999,2]
[343509729,1732699832483,-215.56352354,0.00027999,2]
[343509730,1732699832492,-302.02071717,0.00027999,2]
[343509731,1732699832501,-567.94970924,0.00027999,2]
[343509732,1732699832511,-453.94113834,0.00028,2]
[343509733,1732699832521,-30614.60349331,0.00028,30]
[343509765,1732699838007,-500.0,0.00025089,2]
[343509766,1732699838017,-500.0,0.00025089,2]
[343509767,1732699838027,-500.0,0.00025089,2]
[343509768,1732699838036,-500.0,0.00025089,2]
[343509769,1732699838046,-500.0,0.00025089,2]
[343509770,1732699838055,-602.54596185,0.00025089,2]
[343509771,1732699838064,-500.0,0.00025089,2]
[343509773,1732699838074,-325.2306964,0.00025089,2]
[343509774,1732699838083,-500.0,0.00025089,2]
[343509775,1732699838093,-500.0,0.00025089,2]
[343509776,1732699838103,-500.0,0.00025089,2]
[343509777,1732699838112,-500.0,0.00025089,2]
[343509778,1732699838121,-500.0,0.00025089,2]
[343509779,1732699838131,-500.0,0.00025089,2]
[343509780,1732699838140,-500.0,0.00025089,2]
[343509781,1732699838149,-404.55327851,0.00025089,2]
[343509782,1732699838159,-500.0,0.00025089,2]
[343509783,1732699838168,-500.0,0.00025089,2]
[343509784,1732699838178,-500.0,0.00025089,2]
[343509785,1732699838188,-500.0,0.00025089,2]
[343509786,1732699838197,-500.0,0.00025089,2]
[343509787,1732699838207,-500.0,0.00025089,2]
[343509788,1732699838217,-500.0,0.00025089,2]
[343509789,1732699838227,-500.0,0.00025089,2]
[343509790,1732699838236,-494.49,0.0002799,10]
[343509791,1732699838246,-277493.55709129,0.00028,30]
[343509792,1732699838256,-1461.132346,0.00028267,2]
[343509793,1732699838265,-503.84813485,0.00028307,2]
[343509794,1732699838275,-334.5081353,0.00028307,2]
[343509795,1732699838284,-381.44165997,0.00028377,2]
[343509796,1732699838298,-500.0,0.00028767,2]
[343509797,1732699838308,-1461.132346,0.00028952,2]
[343509798,1732699838317,-381.44165997,0.00029246,2]
[343509799,1732699838326,-587.0,0.00029338,2]
[343509800,1732699838337,-180.26619009,0.00029378,3]
[343509801,1732699838347,-153.0,0.00029394,2]
[343509802,1732699838356,-152.39,0.000296,31]
[343509803,1732699838367,-152.39,0.000296,31]
[343509804,1732699838376,-152.39,0.000296,31]
[343509805,1732699838386,-152.39,0.000296,31]
[343509806,1732699838396,-152.39,0.000296,31]
[343509807,1732699838406,-152.39,0.000296,31]
[343509808,1732699838416,-152.39,0.000296,31]
[343509809,1732699838426,-152.39,0.000296,31]
[343509810,1732699838435,-152.39,0.000296,31]
[343509811,1732699838444,-781.29,0.00029762,2]